fUSD/lending_fUSD_20250322
["ID","MTS","AMOUNT","RATE_DAILY","PERIOD"]
[356523482,1742611839544,-500.0,0.00046575,120]
[356523483,1742611839553,-500.0,0.00046575,120]
[356523484,1742611839563,-500.0,0.00046575,120]
[356523485,1742611839572,-500.0,0.00046575,120]
[356523486,1742611839583,-500.0,0.00046575,120]
[356523487,1742611839594,-500.0,0.00046575,120]
[356523488,1742611839604,-500.0,0.00046575,120]
[356523489,1742611839613,-500.0,0.00046575,120]
[356523490,1742611839622,-666.32,0.00046575,120]
[356523491,1742611839633,-498.02399997,0.00046575,120]
[356523492,1742611839643,-500.0,0.00046575,120]
[356523493,1742611839652,-500.0,0.00046575,120]
[356523494,1742611839662,-500.0,0.00046575,120]
[356523495,1742611839671,-843.31,0.00046575,120]
[356523496,1742611839681,-500.0,0.00046575,120]
[356523497,1742611839690,-500.0,0.00046575,120]
[356523498,1742611839699,-500.0,0.00046575,120]
[356523499,1742611839709,-500.0,0.00046575,120]
[356523500,1742611839718,-649.75,0.00046575,120]
[356523501,1742611839728,-500.0,0.00046575,120]
[356523502,1742611839737,-2302.72,0.00046575,120]
[356523503,1742611839746,-821.97,0.00046575,120]
[356523504,1742611839755,-662.25,0.00046575,120]
[356523505,1742611839764,-649.19,0.00046575,120]
[356523506,1742611839773,-500.0,0.00046575,120]
[356523507,1742611839782,-500.0,0.00046575,120]
[356523508,1742611839791,-559.88,0.00046575,120]
[356523509,1742611839801,-500.0,0.00046575,120]
[356523510,1742611839810,-506.56086882,0.00046575,120]
[356523511,1742611839819,-500.0,0.00046575,120]
[356523512,1742611839828,-1452.64,0.00046575,120]
[356523513,1742611839838,-500.0,0.00046575,120]
[356523514,1742611839847,-500.0,0.00046575,120]
[356523515,1742611839855,-500.0,0.00046575,120]
[356523516,1742611839865,-1352.84,0.00046575,120]
[356523517,1742611839874,-564.62,0.00046575,120]
[356523518,1742611839883,-532.03,0.00046575,120]
[356523519,1742611839891,-726.18,0.00046575,120]
[356523520,1742611839900,-500.0,0.00046575,120]
[356523521,1742611839909,-500.0,0.00046575,120]
[356523522,1742611839918,-572.81,0.00046575,120]
[356523523,1742611839928,-534.08141812,0.00046575,120]
[356523524,1742611839937,-500.0,0.00046575,120]
[356523525,1742611839946,-500.0,0.00046575,120]
[356523526,1742611839955,-500.0,0.00046575,120]
[356523527,1742611839965,-500.0,0.00046575,120]
[356523528,1742611839974,-850.66,0.00046575,120]
[356523529,1742611839984,-500.0,0.00046575,120]
[356523530,1742611839993,-500.0,0.00046575,120]
[356523531,1742611840002,-500.0,0.00046575,120]
[356523532,1742611840012,-500.0,0.00046575,120]
[356523533,1742611840021,-1387.46,0.00046575,120]
[356523534,1742611840030,-588.22,0.00046575,120]
[356523535,1742611840039,-500.0,0.00046575,120]
[356523536,1742611840048,-500.0,0.00046575,120]
[356523537,1742611840057,-500.0,0.00046575,120]
[356523538,1742611840066,-500.0,0.00046575,120]
[356523539,1742611840075,-500.0,0.00046575,120]
[356523540,1742611840085,-1125.1,0.00046575,120]
[356523541,1742611840095,-500.0,0.00046575,120]
[356523542,1742611840104,-500.0,0.00046575,120]
[356523543,1742611840171,-500.0,0.00046575,120]
[356523544,1742611840181,-580.15,0.00046575,120]
[356523545,1742611840190,-500.0,0.00046575,120]
[356523546,1742611840199,-500.0,0.00046575,120]
[356523547,1742611840208,-500.0,0.00046575,120]
[356523548,1742611840218,-1859.08,0.00046575,120]
[356523549,1742611840228,-500.0,0.00046575,120]
[356523550,1742611840236,-500.0,0.00046575,120]
[356523551,1742611840245,-812.05,0.00046575,120]
[356523553,1742611840255,-864.4,0.00046575,120]
[356523554,1742611840264,-169.92620321,0.00046575,120]
[356523555,1742611840273,-775.98,0.00046575,120]
[356523556,1742611840282,-500.0,0.00046575,120]
[356523557,1742611840291,-500.0,0.00046575,120]
[356523558,1742611840299,-572.15,0.00046575,120]
[356523559,1742611840308,-500.0,0.00046575,120]
[356523560,1742611840317,-500.0,0.00046575,120]
[356523561,1742611840326,-500.0,0.00046575,120]
[356523562,1742611840335,-583.73,0.00046575,120]
[356523563,1742611840344,-511.63972207,0.00046575,120]
[356523564,1742611840353,-500.0,0.00046575,120]
[356523565,1742611840363,-535.3218932,0.00046575,120]
[356523566,1742611840372,-500.0,0.00046575,120]
[356523567,1742611840381,-1183.05,0.00046575,120]
[356523568,1742611840390,-1586.95,0.00046575,120]
[356523569,1742611840399,-820.94,0.00046575,120]
[356523570,1742611840408,-601.72,0.00046575,120]
[356523571,1742611840418,-500.0,0.00046575,120]
[356523572,1742611840427,-500.0,0.00046575,120]
[356523573,1742611840436,-500.0,0.00046575,120]
[356523574,1742611840445,-500.0,0.00046575,120]
[356523575,1742611840454,-500.0,0.00046575,120]
[356523576,1742611840463,-2592.19,0.00046575,120]
[356523577,1742611840472,-500.0,0.00046575,120]
[356523578,1742611840481,-500.0,0.00046575,120]
[356523579,1742611840490,-500.0,0.00046575,120]
[356523580,1742611840500,-752.92,0.00046575,120]
[356523581,1742611840510,-500.0,0.00046575,120]
[356523582,1742611840519,-1342.96,0.00046575,120]
[356523583,1742611840528,-500.0,0.00046575,120]
[356523584,1742611840537,-350.0,0.00046575,2]
[356523585,1742611840547,-1185.94,0.00046575,120]
[356523586,1742611840556,-1561.98,0.00046575,120]
[356523587,1742611840566,-500.0,0.00046575,120]
[356523588,1742611840575,-1120.74,0.00046575,120]
[356523589,1742611840584,-500.0,0.00046575,120]
[356523590,1742611840593,-3310.52,0.00046575,120]
[356523591,1742611840602,-500.0,0.00046575,120]
[356523592,1742611840611,-500.0,0.00046575,120]
[356523593,1742611840619,-2389.08,0.00046575,120]
[356523594,1742611840629,-500.0,0.00046575,120]
[356523595,1742611840642,-548.34,0.00046575,120]
[356523596,1742611840651,-500.0,0.00046575,120]
[356523597,1742611840660,-500.0,0.00046575,120]
[356523598,1742611840669,-543.88780771,0.00046575,120]
[356523599,1742611840678,-631.98,0.00046575,120]
[356523600,1742611840687,-500.0,0.00046575,120]
[356523601,1742611840697,-913.43,0.00046575,120]
[356523602,1742611840706,-964.99,0.00046575,120]
[356523603,1742611840717,-267.91676943,0.00046575,120]
[356523604,1742611840726,-500.0,0.00046575,120]
[356523605,1742611840735,-837.06,0.00046575,120]
[356523606,1742611840744,-980.58,0.00046575,120]
[356523607,1742611840752,-681.66,0.00046575,120]
[356523608,1742611840761,-500.0,0.00046575,120]
[356523609,1742611840770,-759.62,0.00046575,120]
[356523610,1742611840779,-500.0,0.00046575,120]
[356523611,1742611840787,-510.72665619,0.00046575,120]
[356523612,1742611840796,-500.0,0.00046575,120]
[356523613,1742611840805,-500.0,0.00046575,120]
[356523614,1742611840814,-500.0,0.00046575,120]
[356523615,1742611840822,-500.0,0.00046575,120]
[356523616,1742611840831,-500.0,0.00046575,120]
[356523617,1742611840839,-636.69,0.00046575,120]
[356523618,1742611840848,-946.02,0.00046575,120]
[356523619,1742611840857,-500.0,0.00046575,120]
[356523620,1742611840865,-500.0,0.00046575,120]
[356523621,1742611840874,-998.26,0.00046575,120]
[356523622,1742611840883,-500.0,0.00046575,120]
[356523623,1742611840892,-923.78,0.00046575,120]
[356523624,1742611840900,-305.32913684,0.00046575,120]
[356523625,1742611840909,-2017.89,0.00046575,120]
[356523626,1742611840918,-3830.33,0.00046575,120]
[356523627,1742611840927,-500.0,0.00046575,120]
[356523628,1742611840936,-895.19,0.00046575,120]
[356523629,1742611840945,-500.0,0.00046575,120]
[356523630,1742611840954,-1258.29,0.00046575,120]
[356523631,1742611840963,-500.0,0.00046575,120]
[356523632,1742611840973,-500.0,0.00046575,120]
[356523633,1742611840982,-500.0,0.00046575,120]
[356523634,1742611840992,-500.0,0.00046575,120]
[356523635,1742611841002,-500.0,0.00046575,120]
[356523636,1742611841012,-951.78,0.00046575,120]
[356523637,1742611841021,-500.0,0.00046575,120]
[356523638,1742611841030,-606.77,0.00046575,120]
[356523639,1742611841039,-2330.62,0.00046575,120]
[356523640,1742611841049,-500.0,0.00046575,120]
[356523641,1742611841058,-500.0,0.00046575,120]
[356523642,1742611841068,-500.0,0.00046575,120]
[356523643,1742611841077,-500.0,0.00046575,120]
[356523644,1742611841086,-500.0,0.00046575,120]
[356523645,1742611841096,-500.0,0.00046575,120]
[356523646,1742611841106,-676.41,0.00046575,120]
[356523647,1742611841115,-537.47,0.00046575,120]
[356523648,1742611841125,-1149.87,0.00046575,120]
[356523649,1742611841134,-500.0,0.00046575,120]
[356523650,1742611841143,-500.0,0.00046575,120]
[356523651,1742611841153,-500.0,0.00046575,120]
[356523652,1742611841163,-3186.6,0.00046575,120]
[356523653,1742611841173,-150.0,0.00046575,60]
[356523654,1742611841183,-754.53,0.00046575,120]
[356523655,1742611841191,-603.18,0.00046575,120]
[356523656,1742611841201,-500.0,0.00046575,120]
[356523657,1742611841211,-510.92185557,0.00046575,120]
[356523658,1742611841220,-500.0,0.00046575,60]
[356523659,1742611841229,-500.0,0.00046575,120]
[356523660,1742611841239,-990.18,0.00046575,120]
[356523661,1742611841248,-500.0,0.00046575,120]
[356523662,1742611841258,-500.0,0.00046575,120]
[356523663,1742611841267,-605.60140968,0.00046575,120]
[356523664,1742611841277,-1006.89,0.00046575,120]
[356523665,1742611841287,-500.0,0.00046575,120]
[356523666,1742611841297,-543.92530512,0.00046575,120]
[356523667,1742611841306,-500.0,0.00046575,120]
[356523668,1742611841315,-500.0,0.00046575,120]
[356523669,1742611841325,-786.18,0.00046575,120]
[356523670,1742611841335,-500.0,0.00046575,120]
[356523671,1742611841344,-614.28780892,0.00046575,120]
[356523672,1742611841353,-1406.16,0.00046575,120]
[356523673,1742611841363,-500.0,0.00046575,120]
[356523674,1742611841372,-500.0,0.00046575,120]
[356523675,1742611841381,-1373.28,0.00046575,120]
[356523676,1742611841390,-2443.9,0.00046575,120]
[356523677,1742611841399,-1123.33,0.00046575,120]
[356523678,1742611841409,-500.0,0.00046575,120]
[356523679,1742611841418,-1733.21,0.00046575,120]
[356523680,1742611841428,-362.55425546,0.00046575,120]
[356523681,1742611841438,-500.0,0.00046575,120]
[356523682,1742611841447,-817.55,0.00046575,120]
[356523683,1742611841457,-500.0,0.00046575,120]
[356523684,1742611841467,-652.89,0.00046575,120]
[356523685,1742611841475,-500.0,0.00046575,120]
[356523686,1742611841484,-500.0,0.00046575,120]
[356523687,1742611841494,-500.0,0.00046575,120]
[356523688,1742611841504,-682.46,0.00046575,120]
[356523689,1742611841513,-500.0,0.00046575,120]
[356523690,1742611841522,-500.0,0.00046575,120]
[356523691,1742611841531,-6405.61,0.00046575,120]
[356523692,1742611841541,-1482.2,0.00046575,120]
[356523693,1742611841550,-500.0,0.00046575,120]
[356523694,1742611841560,-500.0,0.00046575,120]
[356523695,1742611841570,-500.0,0.00046575,120]
[356523696,1742611841579,-1550.83,0.00046575,120]
[356523697,1742611841589,-2534.92,0.00046575,120]
[356523698,1742611841599,-806.86,0.00046575,120]
[356523699,1742611841608,-500.0,0.00046575,120]
[356523700,1742611841618,-575.94,0.00046575,120]
[356523701,1742611841627,-1777.54,0.00046575,120]
[356523702,1742611841640,-775.35,0.00046575,120]
[356523703,1742611841650,-439.32687364,0.00046575,120]
[356523704,1742611841659,-500.0,0.00046575,120]
[356523705,1742611841668,-500.0,0.00046575,120]
[356523706,1742611841679,-526.48117679,0.00046575,120]
[356523707,1742611841687,-887.92,0.00046575,120]
[356523708,1742611841697,-500.0,0.00046575,120]
[356523709,1742611841707,-500.0,0.00046575,120]
[356523710,1742611841716,-500.0,0.00046575,120]
[356523711,1742611841726,-500.0,0.00046575,120]
[356523712,1742611841735,-500.0,0.00046575,120]
[356523713,1742611841743,-1313.27,0.00046575,120]
[356523714,1742611841753,-518.33,0.00046575,120]
[356523715,1742611841762,-500.0,0.00046575,120]
[356523716,1742611841771,-866.43,0.00046575,120]
[356523717,1742611841780,-514.9237721,0.00046575,120]
[356523718,1742611841789,-500.0,0.00046575,120]
[356523719,1742611841798,-500.0,0.00046575,120]
[356523720,1742611841807,-500.0,0.00046575,120]
[356523721,1742611841816,-500.0,0.00046575,120]
[356523722,1742611841825,-500.0,0.00046575,120]
[356523723,1742611841834,-500.0,0.00046575,120]
[356523724,1742611841843,-500.0,0.00046575,120]
[356523725,1742611841852,-565.29,0.00046575,120]
[356523726,1742611841861,-500.0,0.00046575,120]
[356523727,1742611841870,-500.0,0.00046575,120]
[356523728,1742611841879,-732.32,0.00046575,120]
[356523729,1742611841888,-500.0,0.00046575,120]
[356523730,1742611841898,-167.82472587,0.00046575,120]
[356523731,1742611841906,-500.0,0.00046575,120]
[356523732,1742611841915,-861.67,0.00046575,120]
[356523733,1742611841924,-1541.72,0.00046575,120]
[356523734,1742611841933,-514.82550696,0.00046575,120]
[356523735,1742611841943,-1034.23,0.00046575,120]
[356523736,1742611841952,-500.0,0.00046575,120]
[356523737,1742611841961,-2533.52,0.00046575,120]
[356523738,1742611841970,-1236.79,0.00046575,120]
[356523739,1742611841979,-500.0,0.00046575,120]
[356523740,1742611841988,-1236.79,0.00046575,120]
[356523741,1742611841997,-1236.79,0.00046575,120]
[356523742,1742611842007,-1236.79,0.00046575,120]
[356523743,1742611842017,-500.0,0.00046575,120]
[356523744,1742611842026,-1236.79,0.00046575,120]
[356523745,1742611842035,-1236.79,0.00046575,120]
[356523746,1742611842044,-934.42,0.00046575,120]
[356523747,1742611842054,-500.0,0.00046575,120]
[356523748,1742611842063,-871.89,0.00046575,120]
[356523749,1742611842072,-363.1183199,0.00046575,120]
[356523750,1742611842082,-1089.17,0.00046575,120]
[356523751,1742611842091,-500.0,0.00046575,120]
[356523752,1742611842100,-753.13,0.00046575,120]
[356523753,1742611842110,-500.0,0.00046575,120]
[356523754,1742611842119,-827.2,0.00046575,120]
[356523755,1742611842129,-500.0,0.00046575,120]
[356523756,1742611842138,-668.78,0.00046575,120]
[356523757,1742611842148,-507.8958648,0.00046575,120]
[356523758,1742611842157,-1280.87,0.00046575,120]
[356523759,1742611842167,-500.0,0.00046575,120]
[356523761,1742611842176,-500.0,0.00046575,120]
[356523763,1742611842186,-1126.32,0.00046575,120]
[356523764,1742611842195,-876.29,0.00046575,120]
[356523765,1742611842206,-300.0,0.00046575,2]
[356523766,1742611842216,-500.0,0.00046575,60]
[356523767,1742611842225,-1240.79,0.00046575,120]
[356523768,1742611842235,-2334.21,0.00046575,120]
[356523769,1742611842244,-779.56,0.00046575,120]
[356523770,1742611842253,-1270.4,0.00046575,120]
[356523771,1742611842263,-1270.4,0.00046575,120]
[356523772,1742611842272,-6439.02,0.00046575,2]
[356523773,1742611842281,-1270.4,0.00046575,120]
[356523774,1742611842291,-1270.4,0.00046575,120]
[356523776,1742611842300,-1270.4,0.00046575,120]
[356523777,1742611842309,-1270.4,0.00046575,120]
[356523779,1742611842319,-500.0,0.00046575,120]
[356523781,1742611842328,-500.0,0.00046575,120]
[356523782,1742611842337,-543.28467713,0.00046575,120]
[356523783,1742611842347,-783.62,0.00046575,120]
[356523784,1742611842356,-612.57,0.00046575,120]
[356523785,1742611842366,-500.0,0.00046575,120]
[356523786,1742611842375,-756.87,0.00046575,120]
[356523787,1742611842384,-571.43383259,0.00046575,120]
[356523788,1742611842393,-587.84,0.00046575,120]
[356523789,1742611842403,-656.86,0.00046575,120]
[356523791,1742611842623,-500.0,0.00046575,120]
[356523792,1742611842636,-2779.88,0.00046575,120]
[356523793,1742611842646,-500.0,0.00046575,120]
[356523794,1742611842655,-500.0,0.00046575,120]
[356523795,1742611842664,-500.0,0.00046575,120]
[356523796,1742611842675,-518.20181864,0.00046575,120]
[356523797,1742611842684,-799.61,0.00046575,120]
[356523798,1742611842694,-1143.67,0.00046575,120]
[356523799,1742611842704,-872.38,0.00046575,120]
[356523800,1742611842716,-500.0,0.00046575,120]
[356523801,1742611842725,-857.2,0.00046575,120]
[356523802,1742611842734,-692.21,0.00046575,120]
[356523803,1742611842743,-3216.23,0.00046575,120]
[356523804,1742611842753,-607.91,0.00046575,120]
[356523805,1742611842763,-1720.52,0.00046575,120]
[356523806,1742611842772,-401.34572123,0.00046575,10]
[356523807,1742611842782,-697.74,0.00046575,120]
[356523808,1742611842791,-500.0,0.00046575,120]
[356523809,1742611842800,-1482.05,0.00046575,120]
[356523810,1742611842810,-1884.66,0.00046575,120]
[356523811,1742611842819,-500.0,0.00046575,120]
[356523812,1742611842829,-500.0,0.00046575,120]
[356523813,1742611842839,-500.0,0.00046575,120]
[356523814,1742611842850,-500.0,0.00046575,120]
[356523815,1742611842859,-676.42,0.00046575,120]
[356523816,1742611842869,-500.0,0.00046575,120]
[356523817,1742611842879,-546.35,0.00046575,120]
[356523818,1742611842889,-714.38,0.00046575,120]
[356523819,1742611842900,-2550.36,0.00046575,120]
[356523820,1742611842910,-500.0,0.00046575,120]
[356523821,1742611842921,-1172.61,0.00046575,120]
[356523822,1742611842932,-500.0,0.00046575,120]
[356523823,1742611842941,-500.0,0.00046575,120]
[356523824,1742611842951,-500.0,0.00046575,120]
[356523825,1742611842961,-500.0,0.00046575,120]
[356523827,1742611842970,-1489.37,0.00046575,120]
[356523830,1742611842980,-727.27,0.00046575,120]
[356523831,1742611842989,-500.0,0.00046575,120]
[356523832,1742611842999,-1397.37,0.00046575,120]
[356523834,1742611843009,-500.0,0.00046575,120]
[356523836,1742611843018,-500.0,0.00046575,120]
[356523837,1742611843028,-500.0,0.00046575,120]
[356523838,1742611843038,-500.0,0.00046575,120]
[356523839,1742611843047,-2848.73,0.00046575,120]
[356523840,1742611843058,-500.0,0.00046575,120]
[356523841,1742611843067,-1761.51,0.00046575,120]
[356523842,1742611843077,-1000.0,0.00046575,120]
[356523843,1742611843087,-597.74,0.00046575,120]
[356523844,1742611843097,-1550.8,0.00046575,120]
[356523845,1742611843107,-568.04,0.00046575,120]
[356523846,1742611843117,-500.0,0.00046575,120]
[356523847,1742611843126,-712.47,0.00046575,120]
[356523848,1742611843135,-536.99,0.00046575,120]
[356523849,1742611843145,-500.0,0.00046575,120]
[356523850,1742611843155,-500.0,0.00046575,120]
[356523851,1742611843165,-500.0,0.00046575,120]
[356523852,1742611843175,-5306.13,0.00046575,120]
[356523853,1742611843185,-500.0,0.00046575,120]
[356523854,1742611843195,-530.4,0.00046575,120]
[356523855,1742611843204,-2151.61,0.00046575,120]
[356523856,1742611843215,-607.03,0.00046575,120]
[356523857,1742611843225,-517.46630704,0.00046575,120]
[356523858,1742611843234,-716.77,0.00046575,120]
[356523859,1742611843245,-500.0,0.00046575,120]
[356523860,1742611843255,-662.51,0.00046575,120]
[356523861,1742611843267,-517.15,0.00046575,120]
[356523862,1742611843276,-1659.04,0.00046575,120]
[356523863,1742611843287,-500.0,0.00046575,120]
[356523864,1742611843296,-1456.52,0.00046575,120]
[356523865,1742611843306,-500.0,0.00046575,120]
[356523866,1742611843315,-1285.08,0.00046575,120]
[356523867,1742611843325,-8458.93,0.00046575,120]
[356523868,1742611843335,-500.0,0.00046575,120]
[356523869,1742611843345,-350.65,0.00046575,7]
[356523870,1742611843355,-2670.3,0.00046575,120]
[356523871,1742611843364,-516.48905432,0.00046575,120]
[356523872,1742611843375,-500.0,0.00046575,120]
[356523873,1742611843384,-500.0,0.00046575,120]
[356523874,1742611843393,-505.16891774,0.00046575,120]
[356523875,1742611843403,-500.0,0.00046575,120]
[356523876,1742611843413,-1049.52,0.00046575,120]
[356523877,1742611843423,-1671.49,0.00046575,10]
[356523878,1742611843434,-1182.02,0.00046575,120]
[356523879,1742611843443,-500.0,0.00046575,120]
[356523880,1742611843453,-500.0,0.00046575,120]
[356523881,1742611843463,-500.0,0.00046575,120]
[356523882,1742611843472,-506.73041061,0.00046575,120]
[356523883,1742611843482,-500.0,0.00046575,120]
[356523884,1742611843491,-625.12,0.00046575,120]
[356523885,1742611843501,-1335.31,0.00046575,120]
[356523886,1742611843511,-500.0,0.00046575,120]
[356523887,1742611843521,-3500.0,0.00046575,10]
[356523888,1742611843531,-500.0,0.00046575,120]
[356523889,1742611843541,-262.37397489,0.00046575,120]
[356523890,1742611843551,-511.97024866,0.00046575,120]
[356523891,1742611843560,-500.0,0.00046575,120]
[356523892,1742611843570,-500.0,0.00046575,60]
[356523893,1742611843579,-505.43,0.00046575,120]
[356523894,1742611843589,-500.0,0.00046575,120]
[356523895,1742611843599,-1665.18,0.00046575,120]
[356523896,1742611843608,-500.0,0.00046575,120]
[356523897,1742611843618,-654.05,0.00046575,120]
[356523898,1742611843627,-981.68,0.00046575,120]
[356523899,1742611843641,-500.0,0.00046575,60]
[356523900,1742611843651,-500.0,0.00046575,120]
[356523901,1742611843661,-1019.72,0.00046575,120]
[356523902,1742611843670,-500.0,0.00046575,120]
[356523903,1742611843681,-150.0,0.00046575,2]
[356523904,1742611843690,-540.31,0.00046575,120]
[356523905,1742611843699,-500.0,0.00046575,120]
[356523906,1742611843710,-150.0,0.00046575,60]
[356523907,1742611843719,-1005.08,0.00046575,120]
[356523908,1742611843729,-599.65,0.00046575,120]
[356523909,1742611843737,-598.66,0.00046575,120]
[356523910,1742611843747,-485.19954978,0.00046575,120]
[356523911,1742611843756,-1192.93,0.00046575,120]
[356523912,1742611843765,-522.85927733,0.00046575,120]
[356523913,1742611843774,-2619.39,0.00046575,120]
[356523914,1742611843785,-506.21,0.00046575,120]
[356523915,1742611843795,-500.0,0.00046575,30]
[356523916,1742611843804,-1910.83,0.00046575,120]
[356523917,1742611843814,-1571.89,0.00046575,120]
[356523918,1742611843824,-598.16,0.00046575,120]
[356523919,1742611843834,-500.0,0.00046575,120]
[356523920,1742611843844,-826.05,0.00046575,120]
[356523921,1742611843853,-804.26,0.00046575,120]
[356523922,1742611843863,-500.0,0.00046575,120]
[356523923,1742611843872,-500.0,0.00046575,120]
[356523924,1742611843882,-1467.67,0.00046575,120]
[356523925,1742611843891,-500.0,0.00046575,120]
[356523926,1742611843901,-500.0,0.00046575,120]
[356523927,1742611843910,-500.0,0.00046575,120]
[356523928,1742611843919,-253.2287489,0.00046575,120]
[356523929,1742611843929,-467.65865551,0.00046575,120]
[356523930,1742611843939,-4174.33,0.00046575,120]
[356523931,1742611843948,-1125.46,0.00046575,120]
[356523932,1742611843958,-860.38,0.00046575,120]
[356523933,1742611843968,-853.83,0.00046575,120]
[356523934,1742611843977,-500.0,0.00046575,120]
[356523935,1742611843987,-914.47,0.00046575,120]
[356523936,1742611843997,-500.0,0.00046575,120]
[356523937,1742611844007,-2311.24,0.00046575,120]
[356523938,1742611844017,-1539.43,0.00046575,120]
[356523939,1742611844027,-914.19,0.00046575,120]
[356523940,1742611844037,-500.0,0.00046575,120]
[356523941,1742611844046,-500.0,0.00046575,120]
[356523942,1742611844056,-510.65,0.00046575,120]
[356523943,1742611844065,-746.83,0.00046575,120]
[356523944,1742611844075,-500.0,0.00046575,120]
[356523945,1742611844084,-300.0,0.00046575,120]
[356523946,1742611844093,-506.25791502,0.00046575,120]
[356523947,1742611844103,-500.0,0.00046575,120]
[356523948,1742611844113,-769.06,0.00046575,120]
[356523949,1742611844122,-500.0,0.00046575,120]
[356523950,1742611844131,-1870.04,0.00046575,7]
[356523951,1742611844141,-512.86196729,0.00046575,120]
[356523952,1742611844151,-1125.58,0.00046575,120]
[356523953,1742611844160,-7398.46,0.00046575,120]
[356523954,1742611844170,-1812.28,0.00046575,120]
[356523955,1742611844180,-663.97,0.00046575,120]
[356523956,1742611844189,-500.5055901,0.00046575,120]
[356523957,1742611844199,-1570.71,0.00046575,120]
[356523958,1742611844209,-961.92,0.00046575,120]
[356523959,1742611844218,-816.79,0.00046575,120]
[356523960,1742611844228,-701.17,0.00046575,120]
[356523961,1742611844238,-607.65,0.00046575,120]
[356523962,1742611844248,-500.0,0.00046575,120]
[356523963,1742611844258,-500.0,0.00046575,120]
[356523964,1742611844268,-1047.18,0.00046575,120]
[356523965,1742611844278,-466.45840221,0.00046575,2]
[356523966,1742611844288,-792.26,0.00046575,120]
[356523967,1742611844298,-859.16,0.00046575,120]
[356523968,1742611844307,-500.0,0.00046575,120]
[356523969,1742611844317,-685.48,0.00046575,120]
[356523970,1742611844327,-557.33,0.00046575,120]
[356523971,1742611844336,-500.0,0.00046575,120]
[356523972,1742611844346,-1116.63,0.00046575,120]
[356523973,1742611844356,-500.0,0.00046575,120]
[356523974,1742611844365,-500.0,0.00046575,120]
[356523975,1742611844375,-2227.51,0.00046575,120]
[356523976,1742611844385,-500.0,0.00046575,120]
[356523977,1742611844395,-780.77,0.00046575,120]
[356523978,1742611844404,-1084.55,0.00046575,120]
[356523979,1742611844414,-767.93,0.00046575,120]
[356523980,1742611844424,-1000.0,0.00046575,120]
[356523981,1742611844433,-500.0,0.00046575,120]
[356523982,1742611844444,-779.18,0.00046575,120]
[356523983,1742611844454,-500.0,0.00046575,120]
[356523984,1742611844464,-411.33586743,0.00046575,120]
[356523985,1742611844473,-500.0,0.00046575,120]
[356523986,1742611844483,-2559.97,0.00046575,120]
[356523987,1742611844493,-1542.42,0.00046575,120]
[356523988,1742611844503,-566.84,0.00046575,120]
[356523989,1742611844513,-515.99660776,0.00046575,120]
[356523990,1742611844523,-668.6,0.00046575,120]
[356523991,1742611844533,-500.0,0.00046575,120]
[356523992,1742611844543,-500.0,0.00046575,120]
[356523993,1742611844552,-500.0,0.00046575,120]